Workbook

Sheet Bryllupsbudsjett
B2: LINDA + EGIL GIFTER SEG
B5: KATEGORI | C5: ESTIMERTE KOSTNADER | D5: FAKTISKE KOSTNADER | E5: AVVIK | F5: BUDSJETT % | J5: Usortert | K5: Estimerte kostnader | L5: Faktiske kostnader | M5: Anslått kostnad – rangeringsverdi | N5: Rangering | O5: # | P5: Sortert
B6: =P6 -> Mottagelse | C6: =VLOOKUP(TBL_Oppsummering[[#This Row],[KATEGORI]],TBL_Rangeringsdata,2,FALSE) -> kr 14,500 | D6: =IF(VLOOKUP(TBL_Oppsummering[[#This Row],[KATEGORI]],TBL_Rangeringsdata,3,FALSE)=0,"",VLOOKUP(TBL_Oppsummering[[#This Row],[KATEGORI]],TBL_Rangeringsdata,3,FALSE)) -> kr 12,800 | E6: =IF(OR(TBL_Oppsummering[[#This Row],[ESTIMERTE KOSTNADER]]="",TBL_Oppsummering[[#This Row],[FAKTISKE KOSTNADER]]=""),"",TBL_Oppsummering[[#This Row],[ESTIMERTE KOSTNADER]]-TBL_Oppsummering[[#This Row],[FAKTISKE KOSTNADER]]) -> kr 1,700 | F6: =TBL_Oppsummering[[#This Row],[ESTIMERTE KOSTNADER]]/SUM(TBL_Oppsummering[ESTIMERTE KOSTNADER]) -> 48.7 % | J6: Mottagelse | K6: =TBL_Mottagelse[[#Totals],[BEREGNET]] -> 14500 | L6: =TBL_Mottagelse[[#Totals],[FAKTISK]] -> 12800 | M6: =K6-O6/100 -> 14499.99 | N6: =_xlfn.RANK.AVG(M6,$M$6:$M$15) -> 1 | O6: 1 | P6: =INDEX(TBL_Rangeringsdata,MATCH(O6,$N$6:$N$15,0),1) -> Mottagelse
B7: =P7 -> Antrekk | C7: =VLOOKUP(TBL_Oppsummering[[#This Row],[KATEGORI]],TBL_Rangeringsdata,2,FALSE) -> kr 4,000 | D7: =IF(VLOOKUP(TBL_Oppsummering[[#This Row],[KATEGORI]],TBL_Rangeringsdata,3,FALSE)=0,"",VLOOKUP(TBL_Oppsummering[[#This Row],[KATEGORI]],TBL_Rangeringsdata,3,FALSE)) -> kr 2,900 | E7: =IF(OR(TBL_Oppsummering[[#This Row],[ESTIMERTE KOSTNADER]]="",TBL_Oppsummering[[#This Row],[FAKTISKE KOSTNADER]]=""),"",TBL_Oppsummering[[#This Row],[ESTIMERTE KOSTNADER]]-TBL_Oppsummering[[#This Row],[FAKTISKE KOSTNADER]]) -> kr 1,100 | F7: =TBL_Oppsummering[[#This Row],[ESTIMERTE KOSTNADER]]/SUM(TBL_Oppsummering[ESTIMERTE KOSTNADER]) -> 13.4 % | J7: Antrekk | K7: =TBL_Påkledning[[#Totals],[BEREGNET]] -> 4000 | L7: =TBL_Påkledning[[#Totals],[FAKTISK]] -> 2900 | M7: =K7-O7/100 -> 3999.98 | N7: 2 | O7: 2 | P7: Antrekk
B8: Blomster og dekorasjoner | C8: =VLOOKUP(TBL_Oppsummering[[#This Row],[KATEGORI]],TBL_Rangeringsdata,2,FALSE) -> kr 3,000 | D8: =IF(VLOOKUP(TBL_Oppsummering[[#This Row],[KATEGORI]],TBL_Rangeringsdata,3,FALSE)=0,"",VLOOKUP(TBL_Oppsummering[[#This Row],[KATEGORI]],TBL_Rangeringsdata,3,FALSE)) ->  | E8: =IF(OR(TBL_Oppsummering[[#This Row],[ESTIMERTE KOSTNADER]]="",TBL_Oppsummering[[#This Row],[FAKTISKE KOSTNADER]]=""),"",TBL_Oppsummering[[#This Row],[ESTIMERTE KOSTNADER]]-TBL_Oppsummering[[#This Row],[FAKTISKE KOSTNADER]]) ->  | F8: =TBL_Oppsummering[[#This Row],[ESTIMERTE KOSTNADER]]/SUM(TBL_Oppsummering[ESTIMERTE KOSTNADER]) -> 10.1 % | J8: Blomster og dekorasjoner | K8: =TBL_BlomsterOgDekorasjoner[[#Totals],[BEREGNET]] -> 3000 | L8: =TBL_BlomsterOgDekorasjoner[[#Totals],[FAKTISK]] -> 0 | M8: 2999.97 | N8: 3 | O8: 3 | P8: Blomster og dekorasjoner
B9: Fotografier og video | C9: =VLOOKUP(TBL_Oppsummering[[#This Row],[KATEGORI]],TBL_Rangeringsdata,2,FALSE) -> kr 2,500 | D9: =IF(VLOOKUP(TBL_Oppsummering[[#This Row],[KATEGORI]],TBL_Rangeringsdata,3,FALSE)=0,"",VLOOKUP(TBL_Oppsummering[[#This Row],[KATEGORI]],TBL_Rangeringsdata,3,FALSE)) ->  | E9: =IF(OR(TBL_Oppsummering[[#This Row],[ESTIMERTE KOSTNADER]]="",TBL_Oppsummering[[#This Row],[FAKTISKE KOSTNADER]]=""),"",TBL_Oppsummering[[#This Row],[ESTIMERTE KOSTNADER]]-TBL_Oppsummering[[#This Row],[FAKTISKE KOSTNADER]]) ->  | F9: =TBL_Oppsummering[[#This Row],[ESTIMERTE KOSTNADER]]/SUM(TBL_Oppsummering[ESTIMERTE KOSTNADER]) -> 8.4 % | J9: Musikk | K9: =TBL_Musikk[[#Totals],[BEREGNET]] -> 1800 | L9: =TBL_Musikk[[#Totals],[FAKTISK]] -> 0 | M9: 1799.96 | N9: 5 | O9: 4 | P9: Fotografier og video
B10: Musikk | C10: =VLOOKUP(TBL_Oppsummering[[#This Row],[KATEGORI]],TBL_Rangeringsdata,2,FALSE) -> kr 1,800 | D10: =IF(VLOOKUP(TBL_Oppsummering[[#This Row],[KATEGORI]],TBL_Rangeringsdata,3,FALSE)=0,"",VLOOKUP(TBL_Oppsummering[[#This Row],[KATEGORI]],TBL_Rangeringsdata,3,FALSE)) ->  | E10: =IF(OR(TBL_Oppsummering[[#This Row],[ESTIMERTE KOSTNADER]]="",TBL_Oppsummering[[#This Row],[FAKTISKE KOSTNADER]]=""),"",TBL_Oppsummering[[#This Row],[ESTIMERTE KOSTNADER]]-TBL_Oppsummering[[#This Row],[FAKTISKE KOSTNADER]]) ->  | F10: =TBL_Oppsummering[[#This Row],[ESTIMERTE KOSTNADER]]/SUM(TBL_Oppsummering[ESTIMERTE KOSTNADER]) -> 6.1 % | J10: Fotografier og video | K10: =TBL_FotografierOgVideo[[#Totals],[BEREGNET]] -> 2500 | L10: =TBL_FotografierOgVideo[[#Totals],[FAKTISK]] -> 0 | M10: 2499.95 | N10: 4 | O10: 5 | P10: Musikk
B11: Gaver til gjester og gaver | C11: =VLOOKUP(TBL_Oppsummering[[#This Row],[KATEGORI]],TBL_Rangeringsdata,2,FALSE) -> kr 1,100 | D11: =IF(VLOOKUP(TBL_Oppsummering[[#This Row],[KATEGORI]],TBL_Rangeringsdata,3,FALSE)=0,"",VLOOKUP(TBL_Oppsummering[[#This Row],[KATEGORI]],TBL_Rangeringsdata,3,FALSE)) ->  | E11: =IF(OR(TBL_Oppsummering[[#This Row],[ESTIMERTE KOSTNADER]]="",TBL_Oppsummering[[#This Row],[FAKTISKE KOSTNADER]]=""),"",TBL_Oppsummering[[#This Row],[ESTIMERTE KOSTNADER]]-TBL_Oppsummering[[#This Row],[FAKTISKE KOSTNADER]]) ->  | F11: =TBL_Oppsummering[[#This Row],[ESTIMERTE KOSTNADER]]/SUM(TBL_Oppsummering[ESTIMERTE KOSTNADER]) -> 3.7 % | J11: Gaver til gjester og gaver | K11: =TBL_Gaver[[#Totals],[BEREGNET]] -> 1100 | L11: =TBL_Gaver[[#Totals],[FAKTISK]] -> 0 | M11: 1099.94 | N11: 6 | O11: 6 | P11: Gaver til gjester og gaver
B12: =P12 -> Gifteringer | C12: =VLOOKUP(TBL_Oppsummering[[#This Row],[KATEGORI]],TBL_Rangeringsdata,2,FALSE) -> kr 1,100 | D12: =IF(VLOOKUP(TBL_Oppsummering[[#This Row],[KATEGORI]],TBL_Rangeringsdata,3,FALSE)=0,"",VLOOKUP(TBL_Oppsummering[[#This Row],[KATEGORI]],TBL_Rangeringsdata,3,FALSE)) ->  | E12: =IF(OR(TBL_Oppsummering[[#This Row],[ESTIMERTE KOSTNADER]]="",TBL_Oppsummering[[#This Row],[FAKTISKE KOSTNADER]]=""),"",TBL_Oppsummering[[#This Row],[ESTIMERTE KOSTNADER]]-TBL_Oppsummering[[#This Row],[FAKTISKE KOSTNADER]]) ->  | F12: =TBL_Oppsummering[[#This Row],[ESTIMERTE KOSTNADER]]/SUM(TBL_Oppsummering[ESTIMERTE KOSTNADER]) -> 3.7 % | J12: Vielse | K12: =TBL_Seremoni[[#Totals],[BEREGNET]] -> 800 | L12: =TBL_Seremoni[[#Totals],[FAKTISK]] -> 0 | M12: 799.93 | N12: 8 | O12: 7 | P12: Gifteringer
B13: Vielse | C13: =VLOOKUP(TBL_Oppsummering[[#This Row],[KATEGORI]],TBL_Rangeringsdata,2,FALSE) -> kr 800 | D13: =IF(VLOOKUP(TBL_Oppsummering[[#This Row],[KATEGORI]],TBL_Rangeringsdata,3,FALSE)=0,"",VLOOKUP(TBL_Oppsummering[[#This Row],[KATEGORI]],TBL_Rangeringsdata,3,FALSE)) ->  | E13: =IF(OR(TBL_Oppsummering[[#This Row],[ESTIMERTE KOSTNADER]]="",TBL_Oppsummering[[#This Row],[FAKTISKE KOSTNADER]]=""),"",TBL_Oppsummering[[#This Row],[ESTIMERTE KOSTNADER]]-TBL_Oppsummering[[#This Row],[FAKTISKE KOSTNADER]]) ->  | F13: =TBL_Oppsummering[[#This Row],[ESTIMERTE KOSTNADER]]/SUM(TBL_Oppsummering[ESTIMERTE KOSTNADER]) -> 2.7 % | J13: Skrivepapir | K13: =TBL_Invitasjoner[[#Totals],[BEREGNET]] -> 500 | L13: =TBL_Invitasjoner[[#Totals],[FAKTISK]] -> 0 | M13: 499.92 | N13: 9 | O13: 8 | P13: Vielse
B14: Skrivepapir | C14: =VLOOKUP(TBL_Oppsummering[[#This Row],[KATEGORI]],TBL_Rangeringsdata,2,FALSE) -> kr 500 | D14: =IF(VLOOKUP(TBL_Oppsummering[[#This Row],[KATEGORI]],TBL_Rangeringsdata,3,FALSE)=0,"",VLOOKUP(TBL_Oppsummering[[#This Row],[KATEGORI]],TBL_Rangeringsdata,3,FALSE)) ->  | E14: =IF(OR(TBL_Oppsummering[[#This Row],[ESTIMERTE KOSTNADER]]="",TBL_Oppsummering[[#This Row],[FAKTISKE KOSTNADER]]=""),"",TBL_Oppsummering[[#This Row],[ESTIMERTE KOSTNADER]]-TBL_Oppsummering[[#This Row],[FAKTISKE KOSTNADER]]) ->  | F14: =TBL_Oppsummering[[#This Row],[ESTIMERTE KOSTNADER]]/SUM(TBL_Oppsummering[ESTIMERTE KOSTNADER]) -> 1.7 % | J14: Gifteringer | K14: =TBL_Gifteringer[[#Totals],[BEREGNET]] -> 1100 | L14: =TBL_Gifteringer[[#Totals],[FAKTISK]] -> 0 | M14: 1099.91 | N14: 7 | O14: 9 | P14: Skrivepapir
B15: Transport | C15: =VLOOKUP(TBL_Oppsummering[[#This Row],[KATEGORI]],TBL_Rangeringsdata,2,FALSE) -> kr 450 | D15: =IF(VLOOKUP(TBL_Oppsummering[[#This Row],[KATEGORI]],TBL_Rangeringsdata,3,FALSE)=0,"",VLOOKUP(TBL_Oppsummering[[#This Row],[KATEGORI]],TBL_Rangeringsdata,3,FALSE)) ->  | E15: =IF(OR(TBL_Oppsummering[[#This Row],[ESTIMERTE KOSTNADER]]="",TBL_Oppsummering[[#This Row],[FAKTISKE KOSTNADER]]=""),"",TBL_Oppsummering[[#This Row],[ESTIMERTE KOSTNADER]]-TBL_Oppsummering[[#This Row],[FAKTISKE KOSTNADER]]) ->  | F15: =TBL_Oppsummering[[#This Row],[ESTIMERTE KOSTNADER]]/SUM(TBL_Oppsummering[ESTIMERTE KOSTNADER]) -> 1.5 % | J15: Transport | K15: =TBL_Transport[[#Totals],[BEREGNET]] -> 450 | L15: =TBL_Transport[[#Totals],[FAKTISK]] -> 0 | M15: 449.9 | N15: 10 | O15: 10 | P15: Transport
B16: Totalt | C16: =SUBTOTAL(109,TBL_Oppsummering[ESTIMERTE KOSTNADER]) -> kr 29,750 | D16: =SUBTOTAL(109,TBL_Oppsummering[FAKTISKE KOSTNADER]) -> kr 15,700 | E16: =TBL_Oppsummering[[#Totals],[ESTIMERTE KOSTNADER]]-TBL_Oppsummering[[#Totals],[FAKTISKE KOSTNADER]] -> kr 14,050 | F16: =SUBTOTAL(109,TBL_Oppsummering[BUDSJETT %]) -> 100%

Sheet Budsjettdetaljer
B2: BUDSJETTDETALJER
B4: MOTTAGELSE | C4: BEREGNET | D4: FAKTISK | E4: AVVIK
B5: Lokale og leie | C5: kr 8,000.00 | D5: kr 7,800.00 | E5: =IF(OR(TBL_Mottagelse[[#This Row],[BEREGNET]]="",TBL_Mottagelse[[#This Row],[FAKTISK]]=""),"",TBL_Mottagelse[[#This Row],[BEREGNET]]-TBL_Mottagelse[[#This Row],[FAKTISK]]) -> kr 200.00
B6: Mat og tjeneste | C6: kr 4,000.00 | D6: kr 4,200.00 | E6: =IF(OR(TBL_Mottagelse[[#This Row],[BEREGNET]]="",TBL_Mottagelse[[#This Row],[FAKTISK]]=""),"",TBL_Mottagelse[[#This Row],[BEREGNET]]-TBL_Mottagelse[[#This Row],[FAKTISK]]) -> -kr 200.00
B7: Drikkevarer | C7: kr 1,000.00 | D7: kr 800.00 | E7: =IF(OR(TBL_Mottagelse[[#This Row],[BEREGNET]]="",TBL_Mottagelse[[#This Row],[FAKTISK]]=""),"",TBL_Mottagelse[[#This Row],[BEREGNET]]-TBL_Mottagelse[[#This Row],[FAKTISK]]) -> kr 200.00
B8: Kake | C8: kr 1,000.00 | E8: =IF(OR(TBL_Mottagelse[[#This Row],[BEREGNET]]="",TBL_Mottagelse[[#This Row],[FAKTISK]]=""),"",TBL_Mottagelse[[#This Row],[BEREGNET]]-TBL_Mottagelse[[#This Row],[FAKTISK]]) -> 
B9: Diverse gebyrer | C9: kr 500.00 | E9: =IF(OR(TBL_Mottagelse[[#This Row],[BEREGNET]]="",TBL_Mottagelse[[#This Row],[FAKTISK]]=""),"",TBL_Mottagelse[[#This Row],[BEREGNET]]-TBL_Mottagelse[[#This Row],[FAKTISK]]) -> 
B10: BRYLLUPSFEST TOTALT | C10: =SUBTOTAL(109,TBL_Mottagelse[BEREGNET]) -> kr 14,500.00 | D10: =SUBTOTAL(109,TBL_Mottagelse[FAKTISK]) -> kr 12,800.00 | E10: =TBL_Mottagelse[[#Totals],[BEREGNET]]-TBL_Mottagelse[[#Totals],[FAKTISK]] -> kr 1,700.00
B13: PÅKLEDNING | C13: BEREGNET | D13: FAKTISK | E13: AVVIK
B14: Smoking, dress og/eller kjoler | C14: kr 3,000.00 | D14: kr 2,900.00 | E14: =IF(OR(TBL_Påkledning[[#This Row],[BEREGNET]]="",TBL_Påkledning[[#This Row],[FAKTISK]]=""),"",TBL_Påkledning[[#This Row],[BEREGNET]]-TBL_Påkledning[[#This Row],[FAKTISK]]) -> kr 100.00
B15: Endringer | C15: kr 100.00 | E15: =IF(OR(TBL_Påkledning[[#This Row],[BEREGNET]]="",TBL_Påkledning[[#This Row],[FAKTISK]]=""),"",TBL_Påkledning[[#This Row],[BEREGNET]]-TBL_Påkledning[[#This Row],[FAKTISK]]) -> 
B16: Hodepynt og slør | C16: kr 200.00 | E16: =IF(OR(TBL_Påkledning[[#This Row],[BEREGNET]]="",TBL_Påkledning[[#This Row],[FAKTISK]]=""),"",TBL_Påkledning[[#This Row],[BEREGNET]]-TBL_Påkledning[[#This Row],[FAKTISK]]) -> 
B17: Tilbehør | C17: kr 100.00 | E17: =IF(OR(TBL_Påkledning[[#This Row],[BEREGNET]]="",TBL_Påkledning[[#This Row],[FAKTISK]]=""),"",TBL_Påkledning[[#This Row],[BEREGNET]]-TBL_Påkledning[[#This Row],[FAKTISK]]) -> 
B18: Hår og sminke | C18: kr 500.00 | E18: =IF(OR(TBL_Påkledning[[#This Row],[BEREGNET]]="",TBL_Påkledning[[#This Row],[FAKTISK]]=""),"",TBL_Påkledning[[#This Row],[BEREGNET]]-TBL_Påkledning[[#This Row],[FAKTISK]]) -> 
B19: Diverse gebyrer | C19: kr 100.00 | E19: =IF(OR(TBL_Påkledning[[#This Row],[BEREGNET]]="",TBL_Påkledning[[#This Row],[FAKTISK]]=""),"",TBL_Påkledning[[#This Row],[BEREGNET]]-TBL_Påkledning[[#This Row],[FAKTISK]]) -> 
B20: ANTREKK TOTALT | C20: =SUBTOTAL(109,TBL_Påkledning[BEREGNET]) -> kr 4,000.00 | D20: =SUBTOTAL(109,TBL_Påkledning[FAKTISK]) -> kr 2,900.00 | E20: =TBL_Påkledning[[#Totals],[BEREGNET]]-TBL_Påkledning[[#Totals],[FAKTISK]] -> kr 1,100.00
B23: BLOMSTER OG DEKORASJONER | C23: BEREGNET | D23: FAKTISK | E23: AVVIK
B24: Blomsteroppsatser til vielse | C24: kr 1,000.00 | E24: =IF(OR(TBL_BlomsterOgDekorasjoner[[#This Row],[BEREGNET]]="",TBL_BlomsterOgDekorasjoner[[#This Row],[FAKTISK]]=""),"",TBL_BlomsterOgDekorasjoner[[#This Row],[BEREGNET]]-TBL_BlomsterOgDekorasjoner[[#This Row],[FAKTISK]]) -> 
B25: Blomsterjentes knopper og kurv | C25: kr 500.00 | E25: =IF(OR(TBL_BlomsterOgDekorasjoner[[#This Row],[BEREGNET]]="",TBL_BlomsterOgDekorasjoner[[#This Row],[FAKTISK]]=""),"",TBL_BlomsterOgDekorasjoner[[#This Row],[BEREGNET]]-TBL_BlomsterOgDekorasjoner[[#This Row],[FAKTISK]]) -> 
B26: Ringpute | C26: kr 100.00 | E26: =IF(OR(TBL_BlomsterOgDekorasjoner[[#This Row],[BEREGNET]]="",TBL_BlomsterOgDekorasjoner[[#This Row],[FAKTISK]]=""),"",TBL_BlomsterOgDekorasjoner[[#This Row],[BEREGNET]]-TBL_BlomsterOgDekorasjoner[[#This Row],[FAKTISK]]) -> 
B27: Buketter | C27: kr 500.00 | E27: =IF(OR(TBL_BlomsterOgDekorasjoner[[#This Row],[BEREGNET]]="",TBL_BlomsterOgDekorasjoner[[#This Row],[FAKTISK]]=""),"",TBL_BlomsterOgDekorasjoner[[#This Row],[BEREGNET]]-TBL_BlomsterOgDekorasjoner[[#This Row],[FAKTISK]]) -> 
B28: Knapphullsblomster | C28: kr 100.00 | E28: =IF(OR(TBL_BlomsterOgDekorasjoner[[#This Row],[BEREGNET]]="",TBL_BlomsterOgDekorasjoner[[#This Row],[FAKTISK]]=""),"",TBL_BlomsterOgDekorasjoner[[#This Row],[BEREGNET]]-TBL_BlomsterOgDekorasjoner[[#This Row],[FAKTISK]]) -> 
B29: Brystbuketter | C29: kr 200.00 | E29: =IF(OR(TBL_BlomsterOgDekorasjoner[[#This Row],[BEREGNET]]="",TBL_BlomsterOgDekorasjoner[[#This Row],[FAKTISK]]=""),"",TBL_BlomsterOgDekorasjoner[[#This Row],[BEREGNET]]-TBL_BlomsterOgDekorasjoner[[#This Row],[FAKTISK]]) -> 
B30: Dekorasjoner til bryllupsfest | C30: kr 300.00 | E30: =IF(OR(TBL_BlomsterOgDekorasjoner[[#This Row],[BEREGNET]]="",TBL_BlomsterOgDekorasjoner[[#This Row],[FAKTISK]]=""),"",TBL_BlomsterOgDekorasjoner[[#This Row],[BEREGNET]]-TBL_BlomsterOgDekorasjoner[[#This Row],[FAKTISK]]) -> 
B31: Belysning | C31: kr 200.00 | E31: =IF(OR(TBL_BlomsterOgDekorasjoner[[#This Row],[BEREGNET]]="",TBL_BlomsterOgDekorasjoner[[#This Row],[FAKTISK]]=""),"",TBL_BlomsterOgDekorasjoner[[#This Row],[BEREGNET]]-TBL_BlomsterOgDekorasjoner[[#This Row],[FAKTISK]]) -> 
B32: Diverse gebyrer | C32: kr 100.00 | E32: =IF(OR(TBL_BlomsterOgDekorasjoner[[#This Row],[BEREGNET]]="",TBL_BlomsterOgDekorasjoner[[#This Row],[FAKTISK]]=""),"",TBL_BlomsterOgDekorasjoner[[#This Row],[BEREGNET]]-TBL_BlomsterOgDekorasjoner[[#This Row],[FAKTISK]]) -> 
B33: BLOMSTER OG DEKORASJONER TOTALT | C33: =SUBTOTAL(109,TBL_BlomsterOgDekorasjoner[BEREGNET]) -> kr 3,000.00 | D33: =SUBTOTAL(109,TBL_BlomsterOgDekorasjoner[FAKTISK]) -> kr 0.00 | E33: =TBL_BlomsterOgDekorasjoner[[#Totals],[BEREGNET]]-TBL_BlomsterOgDekorasjoner[[#Totals],[FAKTISK]] -> kr 3,000.00
B36: MUSIKK | C36: BEREGNET | D36: FAKTISK | E36: AVVIK
B37: Musikere til vielse | C37: kr 700.00 | E37: =IF(OR(TBL_Musikk[[#This Row],[BEREGNET]]="",TBL_Musikk[[#This Row],[FAKTISK]]=""),"",TBL_Musikk[[#This Row],[BEREGNET]]-TBL_Musikk[[#This Row],[FAKTISK]]) -> 
B38: Musikere til etterfest | C38: kr 300.00 | E38: =IF(OR(TBL_Musikk[[#This Row],[BEREGNET]]="",TBL_Musikk[[#This Row],[FAKTISK]]=""),"",TBL_Musikk[[#This Row],[BEREGNET]]-TBL_Musikk[[#This Row],[FAKTISK]]) -> 
B39: Band, diskjockey eller underholdning til bryllupsfest | C39: kr 200.00 | E39: =IF(OR(TBL_Musikk[[#This Row],[BEREGNET]]="",TBL_Musikk[[#This Row],[FAKTISK]]=""),"",TBL_Musikk[[#This Row],[BEREGNET]]-TBL_Musikk[[#This Row],[FAKTISK]]) -> 
B40: Leie av lydsystem og dansegulv | C40: kr 400.00 | E40: =IF(OR(TBL_Musikk[[#This Row],[BEREGNET]]="",TBL_Musikk[[#This Row],[FAKTISK]]=""),"",TBL_Musikk[[#This Row],[BEREGNET]]-TBL_Musikk[[#This Row],[FAKTISK]]) -> 
B41: Diverse gebyrer | C41: kr 200.00 | E41: =IF(OR(TBL_Musikk[[#This Row],[BEREGNET]]="",TBL_Musikk[[#This Row],[FAKTISK]]=""),"",TBL_Musikk[[#This Row],[BEREGNET]]-TBL_Musikk[[#This Row],[FAKTISK]]) -> 
B42: MUSIKK TOTALT | C42: =SUBTOTAL(109,TBL_Musikk[BEREGNET]) -> kr 1,800.00 | D42: =SUBTOTAL(109,TBL_Musikk[FAKTISK]) -> kr 0.00 | E42: =TBL_Musikk[[#Totals],[BEREGNET]]-TBL_Musikk[[#Totals],[FAKTISK]] -> kr 1,800.00
B45: FOTOGRAFERING OG VIDEO | C45: BEREGNET | D45: FAKTISK | E45: AVVIK
B46: Fotografi | C46: kr 1,000.00 | E46: =IF(OR(TBL_FotografierOgVideo[[#This Row],[BEREGNET]]="",TBL_FotografierOgVideo[[#This Row],[FAKTISK]]=""),"",TBL_FotografierOgVideo[[#This Row],[BEREGNET]]-TBL_FotografierOgVideo[[#This Row],[FAKTISK]]) -> 
B47: Video | C47: kr 800.00 | E47: =IF(OR(TBL_FotografierOgVideo[[#This Row],[BEREGNET]]="",TBL_FotografierOgVideo[[#This Row],[FAKTISK]]=""),"",TBL_FotografierOgVideo[[#This Row],[BEREGNET]]-TBL_FotografierOgVideo[[#This Row],[FAKTISK]]) -> 
B48: Ekstra kopier og album | C48: kr 500.00 | E48: =IF(OR(TBL_FotografierOgVideo[[#This Row],[BEREGNET]]="",TBL_FotografierOgVideo[[#This Row],[FAKTISK]]=""),"",TBL_FotografierOgVideo[[#This Row],[BEREGNET]]-TBL_FotografierOgVideo[[#This Row],[FAKTISK]]) -> 
B49: Diverse gebyrer | C49: kr 200.00 | E49: =IF(OR(TBL_FotografierOgVideo[[#This Row],[BEREGNET]]="",TBL_FotografierOgVideo[[#This Row],[FAKTISK]]=""),"",TBL_FotografierOgVideo[[#This Row],[BEREGNET]]-TBL_FotografierOgVideo[[#This Row],[FAKTISK]]) -> 
B50: BILDER OG VIDEO TOTALT | C50: =SUBTOTAL(109,TBL_FotografierOgVideo[BEREGNET]) -> kr 2,500.00 | D50: =SUBTOTAL(109,TBL_FotografierOgVideo[FAKTISK]) -> kr 0.00 | E50: =TBL_FotografierOgVideo[[#Totals],[BEREGNET]]-TBL_FotografierOgVideo[[#Totals],[FAKTISK]] -> kr 2,500.00
B53: GAVER | C53: BEREGNET | D53: FAKTISK | E53: AVVIK
B54: Velkomstgaver | C54: kr 700.00 | E54: =IF(OR(TBL_Gaver[[#This Row],[BEREGNET]]="",TBL_Gaver[[#This Row],[FAKTISK]]=""),"",TBL_Gaver[[#This Row],[BEREGNET]]-TBL_Gaver[[#This Row],[FAKTISK]]) -> 
B55: Festgaver | C55: kr 200.00 | E55: =IF(OR(TBL_Gaver[[#This Row],[BEREGNET]]="",TBL_Gaver[[#This Row],[FAKTISK]]=""),"",TBL_Gaver[[#This Row],[BEREGNET]]-TBL_Gaver[[#This Row],[FAKTISK]]) -> 
B56: Diverse gebyrer | C56: kr 200.00 | E56: =IF(OR(TBL_Gaver[[#This Row],[BEREGNET]]="",TBL_Gaver[[#This Row],[FAKTISK]]=""),"",TBL_Gaver[[#This Row],[BEREGNET]]-TBL_Gaver[[#This Row],[FAKTISK]]) -> 
B57: GAVER TIL GJESTER OG GAVER TOTALT | C57: =SUBTOTAL(109,TBL_Gaver[BEREGNET]) -> kr 1,100.00 | D57: =SUBTOTAL(109,TBL_Gaver[FAKTISK]) -> kr 0.00 | E57: =TBL_Gaver[[#Totals],[BEREGNET]]-TBL_Gaver[[#Totals],[FAKTISK]] -> kr 1,100.00
B60: SEREMONI | C60: BEREGNET | D60: FAKTISK | E60: AVVIK
B61: Områdegebyr | C61: kr 500.00 | E61: =IF(OR(TBL_Seremoni[[#This Row],[BEREGNET]]="",TBL_Seremoni[[#This Row],[FAKTISK]]=""),"",TBL_Seremoni[[#This Row],[BEREGNET]]-TBL_Seremoni[[#This Row],[FAKTISK]]) -> 
B62: Gebyr til forrettende prest eller donasjon til kirke | C62: kr 200.00 | E62: =IF(OR(TBL_Seremoni[[#This Row],[BEREGNET]]="",TBL_Seremoni[[#This Row],[FAKTISK]]=""),"",TBL_Seremoni[[#This Row],[BEREGNET]]-TBL_Seremoni[[#This Row],[FAKTISK]]) -> 
B63: Diverse gebyrer | C63: kr 100.00 | E63: =IF(OR(TBL_Seremoni[[#This Row],[BEREGNET]]="",TBL_Seremoni[[#This Row],[FAKTISK]]=""),"",TBL_Seremoni[[#This Row],[BEREGNET]]-TBL_Seremoni[[#This Row],[FAKTISK]]) -> 
B64: SEREMONI TOTALT | C64: =SUBTOTAL(109,TBL_Seremoni[BEREGNET]) -> kr 800.00 | D64: =SUBTOTAL(109,TBL_Seremoni[FAKTISK]) -> kr 0.00 | E64: =TBL_Seremoni[[#Totals],[BEREGNET]]-TBL_Seremoni[[#Totals],[FAKTISK]] -> kr 800.00
B67: INVITASJONER | C67: BEREGNET | D67: FAKTISK | E67: AVVIK
B68: Sett av datoen-kort | C68: kr 50.00 | E68: =IF(OR(TBL_Invitasjoner[[#This Row],[BEREGNET]]="",TBL_Invitasjoner[[#This Row],[FAKTISK]]=""),"",TBL_Invitasjoner[[#This Row],[BEREGNET]]-TBL_Invitasjoner[[#This Row],[FAKTISK]]) -> 
B69: Invitasjoner og invitasjonssvar | C69: kr 100.00 | E69: =IF(OR(TBL_Invitasjoner[[#This Row],[BEREGNET]]="",TBL_Invitasjoner[[#This Row],[FAKTISK]]=""),"",TBL_Invitasjoner[[#This Row],[BEREGNET]]-TBL_Invitasjoner[[#This Row],[FAKTISK]]) -> 
B70: Programmer | C70: kr 50.00 | E70: =IF(OR(TBL_Invitasjoner[[#This Row],[BEREGNET]]="",TBL_Invitasjoner[[#This Row],[FAKTISK]]=""),"",TBL_Invitasjoner[[#This Row],[BEREGNET]]-TBL_Invitasjoner[[#This Row],[FAKTISK]]) -> 
B71: Kort for sitteplasser og bordplassering | C71: kr 50.00 | E71: =IF(OR(TBL_Invitasjoner[[#This Row],[BEREGNET]]="",TBL_Invitasjoner[[#This Row],[FAKTISK]]=""),"",TBL_Invitasjoner[[#This Row],[BEREGNET]]-TBL_Invitasjoner[[#This Row],[FAKTISK]]) -> 
B72: Menykort | C72: kr 50.00 | E72: =IF(OR(TBL_Invitasjoner[[#This Row],[BEREGNET]]="",TBL_Invitasjoner[[#This Row],[FAKTISK]]=""),"",TBL_Invitasjoner[[#This Row],[BEREGNET]]-TBL_Invitasjoner[[#This Row],[FAKTISK]]) -> 
B73: Takkekort | C73: kr 50.00 | E73: =IF(OR(TBL_Invitasjoner[[#This Row],[BEREGNET]]="",TBL_Invitasjoner[[#This Row],[FAKTISK]]=""),"",TBL_Invitasjoner[[#This Row],[BEREGNET]]-TBL_Invitasjoner[[#This Row],[FAKTISK]]) -> 
B74: Porto | C74: kr 50.00 | E74: =IF(OR(TBL_Invitasjoner[[#This Row],[BEREGNET]]="",TBL_Invitasjoner[[#This Row],[FAKTISK]]=""),"",TBL_Invitasjoner[[#This Row],[BEREGNET]]-TBL_Invitasjoner[[#This Row],[FAKTISK]]) -> 
B75: Diverse gebyrer | C75: kr 100.00 | E75: =IF(OR(TBL_Invitasjoner[[#This Row],[BEREGNET]]="",TBL_Invitasjoner[[#This Row],[FAKTISK]]=""),"",TBL_Invitasjoner[[#This Row],[BEREGNET]]-TBL_Invitasjoner[[#This Row],[FAKTISK]]) -> 
B76: BREVPAPIR TOTALT | C76: =SUBTOTAL(109,TBL_Invitasjoner[BEREGNET]) -> kr 500.00 | D76: =SUBTOTAL(109,TBL_Invitasjoner[FAKTISK]) -> kr 0.00 | E76: =TBL_Invitasjoner[[#Totals],[BEREGNET]]-TBL_Invitasjoner[[#Totals],[FAKTISK]] -> kr 500.00
B79: GIFTERINGER | C79: BEREGNET | D79: FAKTISK | E79: AVVIK
B80: Gifteringer | C80: kr 1,000.00 | E80: =IF(OR(TBL_Gifteringer[[#This Row],[BEREGNET]]="",TBL_Gifteringer[[#This Row],[FAKTISK]]=""),"",TBL_Gifteringer[[#This Row],[BEREGNET]]-TBL_Gifteringer[[#This Row],[FAKTISK]]) -> 
B81: Ringtilbehør | C81: kr 100.00 | E81: =IF(OR(TBL_Gifteringer[[#This Row],[BEREGNET]]="",TBL_Gifteringer[[#This Row],[FAKTISK]]=""),"",TBL_Gifteringer[[#This Row],[BEREGNET]]-TBL_Gifteringer[[#This Row],[FAKTISK]]) -> 
B82: GIFTERINGER TOTALT | C82: =SUBTOTAL(109,TBL_Gifteringer[BEREGNET]) -> kr 1,100.00 | D82: =SUBTOTAL(109,TBL_Gifteringer[FAKTISK]) -> kr 0.00 | E82: =TBL_Gifteringer[[#Totals],[BEREGNET]]-TBL_Gifteringer[[#Totals],[FAKTISK]] -> kr 1,100.00
B85: TRANSPORT | C85: BEREGNET | D85: FAKTISK | E85: AVVIK
B86: Leie av hovedbil | C86: kr 100.00 | E86: =IF(OR(TBL_Transport[[#This Row],[BEREGNET]]="",TBL_Transport[[#This Row],[FAKTISK]]=""),"",TBL_Transport[[#This Row],[BEREGNET]]-TBL_Transport[[#This Row],[FAKTISK]]) -> 
B87: Leie av gjestebiler | C87: kr 100.00 | E87: =IF(OR(TBL_Transport[[#This Row],[BEREGNET]]="",TBL_Transport[[#This Row],[FAKTISK]]=""),"",TBL_Transport[[#This Row],[BEREGNET]]-TBL_Transport[[#This Row],[FAKTISK]]) -> 
B88: Transport av gjester utenbysfra | C88: kr 100.00 | E88: =IF(OR(TBL_Transport[[#This Row],[BEREGNET]]="",TBL_Transport[[#This Row],[FAKTISK]]=""),"",TBL_Transport[[#This Row],[BEREGNET]]-TBL_Transport[[#This Row],[FAKTISK]]) -> 
B89: Parkeringstjeneste | C89: kr 50.00 | E89: =IF(OR(TBL_Transport[[#This Row],[BEREGNET]]="",TBL_Transport[[#This Row],[FAKTISK]]=""),"",TBL_Transport[[#This Row],[BEREGNET]]-TBL_Transport[[#This Row],[FAKTISK]]) -> 
B90: Diverse gebyrer | C90: kr 100.00 | E90: =IF(OR(TBL_Transport[[#This Row],[BEREGNET]]="",TBL_Transport[[#This Row],[FAKTISK]]=""),"",TBL_Transport[[#This Row],[BEREGNET]]-TBL_Transport[[#This Row],[FAKTISK]]) -> 
B91: TRANSPORT TOTALT | C91: =SUBTOTAL(109,TBL_Transport[BEREGNET]) -> kr 450.00 | D91: =SUBTOTAL(109,TBL_Transport[FAKTISK]) -> kr 0.00 | E91: =TBL_Transport[[#Totals],[BEREGNET]]-TBL_Transport[[#Totals],[FAKTISK]] -> kr 450.00
